Cogmind - Beta 10.2 @@@ ROGUE MODE // 2020.10.31 @ 20:24:41 Player: PhenomPhear Result: Self-destructed Performance ------------- Evolutions (4) 2000 Regions Visited (16) 3200 Robots Destroyed (181) 905 Value Destroyed (4769) 4769 Prototype IDs (43) 860 Alien Tech Used (0) 0 Bonus (-475) -475 TOTAL SCORE: 11259 Bonus ------- High Alert Combat Kills 141 Follower Combat Kills 421 Aligned with FarCom 300 Met Data Miner 300 Friendly Fire -1637 Cogmind --------- Core Integrity 831/850 Matter 7/300 Energy 100/100 System Corruption 1% Temperature Cool (0) Movement Core (50) Location -6/Factory Parts ------- > --- POWER (1) -------- (None) > --- PROPULSION (2) --- Armored Treads > --- UTILITY (9) ------ Improved Utility Shielding > --- WEAPON (3) ------- (None) > --- INVENTORY (4) ---- Improved Signal Interpreter Improved Utility Shielding Heavy Ion Cannon Heavy Plasma Cannon Peak State ------------ > --- POWER ------------ Reinforced Deuterium Engine > --- PROPULSION ------- Armored Treads Armored Treads > --- UTILITY ---------- Advanced Cooling System Large Storage Unit Large Storage Unit Large Storage Unit Improved Signal Interpreter Heavy Armor Plating Improved Medium Armor Plating Hacking Suite > --- WEAPON ----------- Flak Gun Shock Bomb Launcher Mini Grenade Launcher > --- INVENTORY -------- Improved Deuterium Engine Armored Treads Armored Treads Compact Wheel Advanced Sensor Array Experimental Sensor Array Improved Signal Interpreter Advanced Terrain Scan Processor Improved Utility Shielding Improved Utility Shielding Improved Light Armor Plating Improved Medium Armor Plating Improved Medium Armor Plating Improved Medium Armor Plating Advanced EMP Blaster [Rating: 48] Favorites ----------- Power Reinforced Deuterium Engine Engine Reinforced Deuterium Engine Power Core Light Nuclear Core Propulsion Armored Treads Treads Armored Treads Leg Carbon-fiber Leg Flight Unit Improved VTOL Module Utility Large Storage Unit Device Experimental Sensor Array Storage Large Storage Unit Processor Improved Signal Interpreter Hackware Hacking Suite Protection Improved Medium Armor Plating Weapon Heavy Assault Rifle Energy Gun Heavy EM Shotgun Energy Cannon Beam Cannon Ballistic Gun Heavy Assault Rifle Ballistic Cannon Light Cannon Launcher Mini Grenade Launcher Build | -11 -10 -10 -9 -9 -9 -8 -8 -8 -7 -7 -7 -7 -6 -6 -6 -6 ------- Run | Scr Mat Min Mat Min Exi Min Mat Sto Fac Low Low Dat Pro Fac Was Fac Slots Evolved 8 | . . . 2 . . . 2 . 2 . . . . 2 . . Power . | . . . . . . . . . . . . . . . . . Propulsion . | . . . . . . . . . . . . . . . . . Utility 7 | . . . 1 . . . 2 . 2 . . . . 2 . . Weapon 1 | . . . 1 . . . . . . . . . . . . . Parts Attached 126 | 6 6 6 26 4 4 7 13 20 6 10 5 3 4 2 2 2 Power 8 | 1 . 1 1 . 1 . 3 . . 1 . . . . . . Engine 7 | 1 . 1 1 . 1 . 2 . . 1 . . . . . . Core 1 | . . . . . . . 1 . . . . . . . . . Reactor . | . . . . . . . . . . . . . . . . . Propulsion 19 | 2 1 2 4 . 1 3 1 4 . . . . . . . 1 Treads 17 | 2 1 2 4 . 1 2 1 3 . . . . . . . 1 Leg 1 | . . . . . . 1 . . . . . . . . . . Wheel . | . . . . . . . . . . . . . . . . . Hover . | . . . . . . . . . . . . . . . . . Flight 1 | . . . . . . . . 1 . . . . . . . . Utility 36 | 1 2 . 9 . 1 1 5 . 4 6 1 . 2 2 1 1 Device 7 | . . . 1 . 1 . 1 . 1 2 . . . . 1 . Storage 11 | 1 2 . 5 . . . 3 . . . . . . . . . Processor 2 | . . . . . . . . . 1 . . . 1 . . . Hackware 7 | . . . 3 . . . . . 2 . . . . 2 . . Protection 9 | . . . . . . 1 1 . . 4 1 . 1 . . 1 Artifact . | . . . . . . . . . . . . . . . . . Weapon 63 | 2 3 3 12 4 1 3 4 16 2 3 4 3 2 . 1 . Energy Gun 17 | 1 . 1 2 . . . 1 9 . 1 1 1 . . . . Energy Cannon 6 | . 1 1 . . 1 1 1 . . 1 . . . . . . Ballistic Gun 18 | 1 . . 5 2 . 1 2 2 . 1 2 2 . . . . Ballistic Cannon 2 | . 1 . 1 . . . . . . . . . . . . . Launcher 20 | . 1 1 4 2 . 1 . 5 2 . 1 . 2 . 1 . Special Weapon . | . . . . . . . . . . . . . . . . . Impact Weapon . | . . . . . . . . . . . . . . . . . Slashing Weapon . | . . . . . . . . . . . . . . . . . Piercing Weapon . | . . . . . . . . . . . . . . . . . Special Melee Weapon . | . . . . . . . . . . . . . . . . . Unidentified Prototypes 6 | . . . . . . . . 6 . . . . . . . . Parts Lost 22 | . 2 2 4 . 5 1 1 . . 4 . . 1 1 1 . Power 3 | . . 1 . . 2 . . . . . . . . . . . Propulsion 4 | . . 1 . . 1 1 . . . . . . . . 1 . Utility 5 | . . . 1 . 1 . 1 . . 1 . . . 1 . . Weapon 10 | . 2 . 3 . 1 . . . . 3 . . 1 . . . Highest Loss Streak 4 | . 2 2 3 . 3 3 1 . . 4 . . 1 1 1 . Average Slot Usage (%) 91 | . 94 99 98 100 91 75 94 99 98 92 93 70 87 83 60 13 Engine 8 | . 14 13 11 11 10 . 4 9 7 7 7 7 7 6 4 . Treads 19 | . 28 27 22 22 22 21 18 17 15 15 15 15 15 13 8 6 Device 3 | . . . 7 . 2 . 3 . 6 5 7 7 6 . 3 . Storage 25 | . 26 28 21 22 22 22 31 36 25 23 23 23 23 20 12 . Processor 1 | . . . . . . . . . 6 3 . . 5 6 4 . Hackware 3 | . . . 3 11 7 . . . 10 13 7 7 1 3 4 . Protection 5 | . . . . . . 10 9 9 1 6 12 7 8 13 8 6 Energy Gun 5 | . 4 9 3 . . . 3 23 19 8 4 . . . . . Energy Cannon 2 | . 5 13 . . 2 . . . . 1 . . . . . . Ballistic Gun 11 | . 4 . 26 31 24 10 14 1 . 1 14 . 11 6 2 . Ballistic Cannon 1 | . 6 4 1 . . . . . . . . . . . . . Launcher 3 | . 3 . 1 1 . 11 5 1 2 3 . . 5 13 11 . Naked Turns 46 | . . . . . . . . . . . . . . . 46 . Heaviest Build 100 | 12 43 43 62 48 61 42 89 94 93 83 89 89 96 96 100 2 Greatest Support 40 | 40 40 40 40 40 40 40 40 40 40 40 40 40 40 40 40 20 Greatest Overweight (x) 4 | . 1 1 1 1 1 1 2 4 2 2 2 2 2 2 2 . Average Overweight (x) 1 | . . . . 1 . . 1 2 1 1 2 1 2 2 . . Largest Inventory Capacity 28 | 6 16 16 22 16 16 16 28 28 28 22 22 22 22 22 22 4 Average Capacity 19 | 5 13 16 15 16 16 16 25 28 23 22 22 22 22 22 14 4 Most Carried 28 | . 11 15 17 16 16 13 21 28 28 22 22 20 20 17 15 4 Average Carried 16 | . 5 13 13 15 15 12 17 27 22 20 20 20 18 16 10 3 Final Capacity 28 | 6 16 16 16 16 16 16 28 28 22 22 22 22 22 22 4 4 Final Carried 28 | . 11 15 15 16 13 13 21 28 21 20 20 20 17 15 4 4 Class Distribution -------------------- 30% | Mutant 26% | Hauler-Mutant 18% | Scavenger-Gunner 12% | Hauler-Skirmisher 6% | Scavenger-Tank Dominant Class ---------------- Mutant | -10/Materials Mutant | -10/Mines Scavenger-Gunner | -9/Materials Scavenger-Gunner | -9/Mines Scavenger-Gunner | -9/Exiles Mutant | -8/Mines Hauler-Mutant | -8/Materials Hauler-Skirmisher | -8/Storage Commander-Skirmisher | -7/Factory Hauler-Mutant | -7/Lower Caves Scavenger-Tank | -7/Lower Caves Hauler-Mutant | -7/Data Miner Hauler-Mutant | -6/Proximity Caves Hauler-Mutant | -6/Factory Mutant | -6/Waste Mutant | -6/Factory Resources | -11 -10 -10 -9 -9 -9 -8 -8 -8 -7 -7 -7 -7 -6 -6 -6 -6 ----------- Run | Scr Mat Min Mat Min Exi Min Mat Sto Fac Low Low Dat Pro Fac Was Fac Matter Collected 3437 | 260 211 142 854 237 . 181 618 275 71 99 223 . 266 . . . Remotely . | . . . . . . . . . . . . . . . . . Salvage Created 6406 | . 418 279 1525 145 424 196 948 1267 . 251 234 . 244 . 475 . Parts 350 | . 22 7 106 21 20 19 54 61 . 14 18 . 8 . . . Haulers Intercepted 10 | . 1 . 3 . . . 2 4 . . . . . . . . Recyclers Shooed 4 | . 1 . 3 . . . . . . . . . . . . . Parts Field Recycled . | . . . . . . . . . . . . . . . . . Retrieved Matter . | . . . . . . . . . . . . . . . . . Parts Self-Destructed 20 | . . . . . . . . . . 10 8 . 2 . . . Prevented 18 | . . . . . . . . . . 11 1 . 6 . . . Kills | -11 -10 -10 -9 -9 -9 -8 -8 -8 -7 -7 -7 -7 -6 -6 -6 -6 ------- Run | Scr Mat Min Mat Min Exi Min Mat Sto Fac Low Low Dat Pro Fac Was Fac Combat Hostiles Destroyed 121 | . 8 6 28 8 17 8 16 14 . 4 6 . 4 . 2 . Melee 2 | . . 1 . . . . . . . . . . 1 . . . Guns 42 | . 4 . 18 . . . 7 8 . 2 2 . 1 . . . Cannons 7 | . . 3 1 . 3 . . . . . . . . . . . AOE 64 | . 4 2 9 8 12 8 9 5 . . 4 . 2 . 1 . Classes Destroyed 17 | . 5 3 2 . 4 . . . . . 2 . . . 1 . Worker 13 | . 3 . 7 . . . 2 1 . . . . . . . . Builder 7 | . 2 . . . . . 4 1 . . . . . . . . Tunneler 1 | . . 1 . . . . . . . . . . . . . . Hauler 10 | . 1 . 3 . . . 2 4 . . . . . . . . Recycler 16 | . 3 . 6 1 . 1 3 2 . . . . . . . . Operator 7 | . . . 5 . . . . 2 . . . . . . . . Watcher 4 | . . . 2 . . . 2 . . . . . . . . . Swarmer 34 | . . 3 11 8 . 7 . . . 1 4 . . . . . Grunt 53 | . 8 2 13 . 8 . 10 10 . . . . 2 . . . Brawler 5 | . . . . . 1 . 1 . . 2 . . 1 . . . Duelist 1 | . . . . . 1 . . . . . . . . . . . Sentry 14 | . . 1 4 . . . 4 4 . 1 . . . . . . Hunter 7 | . . . . . 5 1 1 . . . . . . . . . Programmer 4 | . . . . . 2 . . . . . 1 . 1 . . . Compactor 2 | . . . . . . . . . . . . . . . 2 . Samaritan 1 | . . . . . . . . . . . 1 . . . . . Master Thief 1 | . . . . . . . . . . . 1 . . . . . Best Kill Streak 13 | . 9 3 7 5 11 4 13 4 . 4 3 . 2 . 1 . Combat Bots Only 11 | . 4 3 5 4 11 4 8 3 . 4 3 . 2 . 2 . Max Kills in Single Turn 4 | . 2 2 3 4 3 3 4 2 . 1 4 . 1 . 1 . Gunslinging . | . . . . . . . . . . . . . . . . . Exploded 4 | . 1 2 3 4 3 3 1 2 . . 3 . 1 . 1 . Melee 1 | . . 1 . . . . . . . . . . 1 . . . Uniques/NPCs Destroyed 1 | . . 1 . . . . . . . . . . . . . . YI-UF0 (-10/Mines) Combat | -11 -10 -10 -9 -9 -9 -8 -8 -8 -7 -7 -7 -7 -6 -6 -6 -6 -------- Run | Scr Mat Min Mat Min Exi Min Mat Sto Fac Low Low Dat Pro Fac Was Fac Damage Taken 5166 | . 508 318 661 104 996 226 635 421 18 640 225 . 225 . 150 39 Core 550 | . 94 50 109 15 83 15 27 29 6 103 . . . . . 19 Absorbed by Shields . | . . . . . . . . . . . . . . . . . Core Remaining (%) 71 | 100 . 42 . . . 44 . 89 . . . . 84 . . . Volleys Fired 361 | . 38 36 88 5 16 20 55 38 6 9 26 . 9 . 15 . Largest 3 | . 2 2 3 3 1 1 3 3 1 3 3 . 2 . 2 . Hottest 156 | . 70 125 148 66 100 30 98 156 36 150 101 . 51 . 72 . Shots Fired 689 | . 55 70 249 7 16 20 85 81 6 21 50 . 11 . 18 . Gun 507 | . 34 24 239 3 . 8 65 66 . 20 43 . 5 . . . Cannon 73 | . 7 45 4 . 16 . . . . 1 . . . . . . Launcher 109 | . 14 1 6 4 . 12 20 15 6 . 7 . 6 . 18 . Special . | . . . . . . . . . . . . . . . . . Kinetic 364 | . 24 11 228 3 . 8 52 . . 1 32 . 5 . . . Thermal 117 | . 17 58 15 . 16 . . 11 . . . . . . . . Explosive 74 | . 14 1 6 4 . 12 20 2 3 . . . . . 12 . Electromagnetic 134 | . . . . . . . 13 68 3 20 18 . 6 . 6 . Robot Hit Streak 27 | . 7 12 11 11 6 8 9 14 . 27 6 . 6 . 13 . Robot Miss Streak 9 | . 2 4 3 1 2 2 5 2 . 3 9 . 4 . 1 . Penetration Max 1 | . . . . . . . 1 . . . . . . . . . Secondary Targets 4 | . . . 2 . . . . 1 . 1 . . . . . . Max Gunslinging Chain 1 | . . . 1 . . . . 1 . 1 . . . . . . Shots Hit Robots 412 | . 35 44 147 2 10 10 42 52 . 17 28 . 8 . 17 . Core Hits 305 | . 37 15 70 10 15 12 56 38 4 12 20 . 12 . 4 . Critical Hits 4 | . . . 3 . . . . 1 . . . . . . . . Critical Kills 3 | . . . 2 . . . . 1 . . . . . . . . Critical Parts Destroyed 1 | . . . 1 . . . . . . . . . . . . . Melee Attacks . | . . . . . . . . . . . . . . . . . Impact . | . . . . . . . . . . . . . . . . . Slashing . | . . . . . . . . . . . . . . . . . Piercing . | . . . . . . . . . . . . . . . . . Sneak Attacks . | . . . . . . . . . . . . . . . . . Combat Hostiles . | . . . . . . . . . . . . . . . . . Follow-up Attacks . | . . . . . . . . . . . . . . . . . Damage Inflicted 16444 | . 1180 821 2523 497 4003 692 2357 1521 71 327 940 . 351 . 1161 . Guns 4785 | . 304 209 1871 37 . 106 797 730 . 296 365 . 70 . . . Cannons 2070 | . 84 467 59 . 1456 . . . . 4 . . . . . . Explosions 9504 | . 787 118 593 460 2547 586 1555 791 71 24 575 . 236 . 1161 . Melee . | . . . . . . . . . . . . . . . . . Ramming 85 | . 5 27 . . . . 5 . . 3 . . 45 . . . Kinetic 3357 | . 214 100 1847 37 . 106 662 . . . 321 . 70 . . . Thermal 5713 | . 174 576 83 85 4003 . 74 335 . . 383 . . . . . Explosive 5116 | . 787 118 593 375 . 586 1481 4 22 . . . . . 1150 . Electromagnetic 2173 | . . . . . . . 135 1182 49 324 236 . 236 . 11 . Impact . | . . . . . . . . . . . . . . . . . Slashing . | . . . . . . . . . . . . . . . . . Piercing . | . . . . . . . . . . . . . . . . . Highest Corruption 11 | . . . . . . . . . . 7 7 7 11 1 1 1 Average Corruption 6 | . . . . . . . . . . 6 7 7 8 1 1 1 Corruption Purged . | . . . . . . . . . . . . . . . . . Effects 83 | . . . . . . . . . . 16 26 3 37 . 1 . Message Errors 16 | . . . . . . . . . . 2 7 . 7 . . . Matter Fused 25 | . . . . . . . . . . 5 6 1 13 . . . Heat Flow Errors 9 | . . . . . . . . . . 3 4 . 2 . . . Energy Discharges 12 | . . . . . . . . . . 3 2 1 6 . . . Parts Rejected 1 | . . . . . . . . . . . . . 1 . . . Data Loss (minor) 5 | . . . . . . . . . . . . 1 3 . 1 . Data Loss (major) 3 | . . . . . . . . . . . 2 . 1 . . . Misfires 4 | . . . . . . . . . . 1 2 . 1 . . . Misdirections 2 | . . . . . . . . . . . . . 2 . . . Targeting Errors 5 | . . . . . . . . . . 2 2 . 1 . . . Weapon Failures 1 | . . . . . . . . . . . 1 . . . . . Overload Shots . | . . . . . . . . . . . . . . . . . Overflow Damage 896 | . 46 5 30 17 659 24 40 75 . . . . . . . . Projectiles 455 | . . . . . 455 . . . . . . . . . . . Explosions 441 | . 46 5 30 17 204 24 40 75 . . . . . . . . Melee . | . . . . . . . . . . . . . . . . . Knockbacks 2 | . 1 1 . . . . . . . . . . . . . . Impact 1 | . 1 . . . . . . . . . . . . . . . Kinetic 1 | . . 1 . . . . . . . . . . . . . . Secondary . | . . . . . . . . . . . . . . . . . Self-Inflicted Damage 435 | . 100 40 23 . . 30 43 10 18 . 67 . . . 104 . Shots 16 | . 4 1 1 . . 1 2 1 1 . 1 . . . 4 . Rammed 13 | . 1 5 . . . . 1 . . 1 . . 5 . . . Targets Rammed 14 | . 2 5 . . . . 1 . . 1 . . 5 . . . Kicked . | . . . . . . . . . . . . . . . . . Crushed 1 | . 1 . . . . . . . . . . . . . . . Highest Temperature 327 | . 133 297 33 . . . 120 327 . 282 306 . 184 . . . Average Temperature 96 | . 65 112 9 . . . 35 110 . 144 129 . 64 . . . Received Heat Transfer 1116 | . 225 132 174 . 24 . 198 207 . 108 . . 30 . . 18 Effects 9 | . . 1 . . . . . 3 . 1 4 . . . . . Energy Bleed 2 | . . 1 . . . . . . . 1 . . . . . . Interference 7 | . . . . . . . . 3 . . 4 . . . . . Siege Activations . | . . . . . . . . . . . . . . . . . Robots Corrupted 3 | . . . . . . . . 1 . 2 . . . . . . Combat Hostiles 3 | . . . . . . . . 1 . 2 . . . . . . Parts Fried 8 | . . . . . . . . 4 . 2 1 . 1 . . . Impact Corruptions . | . . . . . . . . . . . . . . . . . Robots Melted 2 | . . . . . 2 . . . . . . . . . . . Combat Hostiles 2 | . . . . . 2 . . . . . . . . . . . Parts Melted 2 | . . 2 . . . . . . . . . . . . . . Heat Transferred 6791 | . 518 1295 185 100 3760 . 50 533 . . 350 . . . . . Parts Sabotaged . | . . . . . . . . . . . . . . . . . Parts Stolen 2 | . . . . . . . . . . . 2 . . . . . Parts Stripped . | . . . . . . . . . . . . . . . . . Power Chain Reactions 10 | . . . . . . . 1 7 . . 2 . . . . . Missiles Intercepted . | . . . . . . . . . . . . . . . . . Latent Energy Used 43 | . . . . . . . . . . 43 . . . . . . LE Corruption 1 | . . . . . . . . . . 1 . . . . . . Alert | -11 -10 -10 -9 -9 -9 -8 -8 -8 -7 -7 -7 -7 -6 -6 -6 -6 ------- Run | Scr Mat Min Mat Min Exi Min Mat Sto Fac Low Low Dat Pro Fac Was Fac Peak Influence 783 | . 278 149 512 294 . 168 446 783 526 . . . . 18 16 26 Initial 355 | . . 17 11 199 . . 65 161 355 . . . . 18 2 11 Average 194 | . 95 57 192 230 . 76 253 435 381 . . . . 17 5 11 Maximum Alert Level 3 | . 1 . 2 1 . . 2 3 2 . . . . . . . Low Security (%) 62 | 100 92 100 53 59 . 100 43 6 . . . . . 100 100 100 Level 1 25 | . 7 . 40 40 . . 33 42 83 . . . . . . . Level 2 11 | . . . 6 . . . 23 46 16 . . . . . . . Level 3 . | . . . . . . . . 5 . . . . . . . . Level 4 . | . . . . . . . . . . . . . . . . . Level 5 . | . . . . . . . . . . . . . . . . . High Security . | . . . . . . . . . . . . . . . . . Max Security . | . . . . . . . . . . . . . . . . . Squads Dispatched 17 | . 1 . 8 . . . 1 4 . . . . . 2 . 1 Investigation 7 | . 1 . 3 . . . . . . . . . . 2 . 1 Extermination . | . . . . . . . . . . . . . . . . . Reinforcement 10 | . . . 5 . . . 1 4 . . . . . . . . Assault . | . . . . . . . . . . . . . . . . . Garrison . | . . . . . . . . . . . . . . . . . Intercept . | . . . . . . . . . . . . . . . . . Construction Impeded . | . . . . . . . . . . . . . . . . . Haulers Reinforced . | . . . . . . . . . . . . . . . . . Stealth | -11 -10 -10 -9 -9 -9 -8 -8 -8 -7 -7 -7 -7 -6 -6 -6 -6 --------- Run | Scr Mat Min Mat Min Exi Min Mat Sto Fac Low Low Dat Pro Fac Was Fac Distress Signals 13 | . . . 7 . . . 3 3 . . . . . . . . Communications Jammed . | . . . . . . . . . . . . . . . . . Distress Signals . | . . . . . . . . . . . . . . . . . Times Spotted 192 | . 22 8 53 8 15 8 24 29 1 5 5 . 5 . 6 3 Peak Tracking Total 8 | . 3 3 8 4 7 4 5 3 1 4 4 . 3 . 4 3 Tactical Retreats 14 | . 6 . 3 . 2 1 1 . . . . . 1 . . . Traps | -11 -10 -10 -9 -9 -9 -8 -8 -8 -7 -7 -7 -7 -6 -6 -6 -6 ------- Run | Scr Mat Min Mat Min Exi Min Mat Sto Fac Low Low Dat Pro Fac Was Fac Traps Triggered 5 | . 1 . 1 . . . . 1 . . . . . 1 . 1 Indirectly . | . . . . . . . . . . . . . . . . . Trap Hack Attempts . | . . . . . . . . . . . . . . . . . Triggered . | . . . . . . . . . . . . . . . . . Disarmed . | . . . . . . . . . . . . . . . . . Reprogrammed . | . . . . . . . . . . . . . . . . . Reused . | . . . . . . . . . . . . . . . . . Traps Extracted . | . . . . . . . . . . . . . . . . . Installed . | . . . . . . . . . . . . . . . . . Triggered . | . . . . . . . . . . . . . . . . . Exploded 1 | . . . . . 1 . . . . . . . . . . . Machines | -11 -10 -10 -9 -9 -9 -8 -8 -8 -7 -7 -7 -7 -6 -6 -6 -6 ---------- Run | Scr Mat Min Mat Min Exi Min Mat Sto Fac Low Low Dat Pro Fac Was Fac Machines Disabled 21 | . 1 2 1 6 1 2 2 6 . . . . . . . . Max in Single Turn 6 | . 1 1 1 6 1 1 1 1 . . . . . . . . Machines Sabotaged . | . . . . . . . . . . . . . . . . . Garrisons Compromised . | . . . . . . . . . . . . . . . . . Overloaded Fab Kills . | . . . . . . . . . . . . . . . . . Fab Network Shutdowns . | . . . . . . . . . . . . . . . . . Hacking | -11 -10 -10 -9 -9 -9 -8 -8 -8 -7 -7 -7 -7 -6 -6 -6 -6 --------- Run | Scr Mat Min Mat Min Exi Min Mat Sto Fac Low Low Dat Pro Fac Was Fac Machines Accessed 23 | . 3 1 4 . 1 . 2 4 1 . . 4 . 2 . 1 Terminals 15 | . 3 1 3 . . . 1 4 1 . . . . 2 . . Fabricators . | . . . . . . . . . . . . . . . . . Repair Stations 1 | . . . . . . . 1 . . . . . . . . . Recycling Units 1 | . . . . . . . . . . . . . . . . 1 Scanalyzers 1 | . . . 1 . . . . . . . . . . . . . Garrison Access . | . . . . . . . . . . . . . . . . . Total Hacks 69 | . 8 1 13 . 1 . 3 9 1 . . 27 . 4 . 2 Successful 47 | . 6 1 5 . 1 . . 5 1 . . 27 . . . 1 Failed 22 | . 2 . 8 . . . 3 4 . . . . . 4 . 1 Catastrophic 3 | . . . . . . . . 1 . . . . . 2 . . Database Lockouts . | . . . . . . . . . . . . . . . . . Manual 22 | . 5 . 10 . 1 . . 1 1 . . . . 4 . . Terminals 34 | . 8 1 9 . . . 2 9 1 . . . . 4 . . Fabricators . | . . . . . . . . . . . . . . . . . Repair Stations 1 | . . . . . . . 1 . . . . . . . . . Recycling Units 2 | . . . . . . . . . . . . . . . . 2 Scanalyzers 4 | . . . 4 . . . . . . . . . . . . . Garrison Access . | . . . . . . . . . . . . . . . . . Terminal Hacks 40 | . 3 1 2 . 1 . . 5 1 . . 27 . . . . Record 11 | . . . . . . . . . . . . 11 . . . . Part Schematic 8 | . . . . . . . . 1 . . . 7 . . . . Robot Schematic 6 | . . . . . . . . . . . . 6 . . . . Robot Analysis 1 | . . . 1 . . . . . . . . . . . . . Prototype ID Bank 5 | . 2 . . . . . . . . . . 3 . . . . Open Door 2 | . . . . . . . . 2 . . . . . . . . Branch Access Points 2 | . . . 1 . . . . . 1 . . . . . . . Alert Level 1 | . . . . . . . . 1 . . . . . . . . Locate Traps 1 | . . . . . . . . 1 . . . . . . . . Patrol Status 1 | . . 1 . . . . . . . . . . . . . . Zone Layout 1 | . 1 . . . . . . . . . . . . . . . EX-Prototype ID Bank 1 | . . . . . 1 . . . . . . . . . . . Fabricator Hacks . | . . . . . . . . . . . . . . . . . Repair Station Hacks . | . . . . . . . . . . . . . . . . . Recycling Unit Hacks 1 | . . . . . . . . . . . . . . . . 1 Retrieve Matter 1 | . . . . . . . . . . . . . . . . 1 Scanalyzer 2 | . . . 2 . . . . . . . . . . . . . Insert Component 1 | . . . 1 . . . . . . . . . . . . . Analyze 1 | . . . 1 . . . . . . . . . . . . . Garrison Access Hacks . | . . . . . . . . . . . . . . . . . Unauthorized Hacks 4 | . 3 . 1 . . . . . . . . . . . . . Terminals 4 | . 3 . 1 . . . . . . . . . . . . . Botnet 3 | . 3 . . . . . . . . . . . . . . . Disrupt 1 | . . . 1 . . . . . . . . . . . . . Fabricators . | . . . . . . . . . . . . . . . . . Repair Stations . | . . . . . . . . . . . . . . . . . Recycling Units . | . . . . . . . . . . . . . . . . . Scanalyzers . | . . . . . . . . . . . . . . . . . Garrison Access . | . . . . . . . . . . . . . . . . . Data Cores Recovered . | . . . . . . . . . . . . . . . . . Used . | . . . . . . . . . . . . . . . . . Hacking Detections 14 | . 2 . 4 . . . 2 3 . . . . . 2 . 1 Full Trace Events 5 | . 1 . 2 . . . . . . . . . . 2 . . Feedback Events 2 | . . . . . . . . . . . . . . 2 . . Corruption 1 | . . . . . . . . . . . . . . 1 . . Hackware Fried 1 | . . . . . . . . . . . . . . 1 . . Feedback Blocked . | . . . . . . . . . . . . . . . . . Robot Schematics Acquired 6 | . . . . . . . . . . . . 6 . . . . Robots Built . | . . . . . . . . . . . . . . . . . Matter . | . . . . . . . . . . . . . . . . . Time . | . . . . . . . . . . . . . . . . . Total Robot Build Rating . | . . . . . . . . . . . . . . . . . Part Schematics Acquired 8 | . . . . . . . . 1 . . . 7 . . . . Parts Built . | . . . . . . . . . . . . . . . . . Matter . | . . . . . . . . . . . . . . . . . Time . | . . . . . . . . . . . . . . . . . Total Part Build Rating . | . . . . . . . . . . . . . . . . . Parts Repaired . | . . . . . . . . . . . . . . . . . Time . | . . . . . . . . . . . . . . . . . Parts Recycled . | . . . . . . . . . . . . . . . . . Recycled Matter . | . . . . . . . . . . . . . . . . . Retrieved Matter . | . . . . . . . . . . . . . . . . . Retrieved Components . | . . . . . . . . . . . . . . . . . Parts Scanalyzed 1 | . . . 1 . . . . . . . . . . . . . Part Schematics Acquired . | . . . . . . . . . . . . . . . . . Parts Damaged . | . . . . . . . . . . . . . . . . . Bothacking | -11 -10 -10 -9 -9 -9 -8 -8 -8 -7 -7 -7 -7 -6 -6 -6 -6 ------------ Run | Scr Mat Min Mat Min Exi Min Mat Sto Fac Low Low Dat Pro Fac Was Fac Used RIF Installer . | . . . . . . . . . . . . . . . . . Robots Hacked . | . . . . . . . . . . . . . . . . . Non-combat . | . . . . . . . . . . . . . . . . . Combat . | . . . . . . . . . . . . . . . . . Robot Hacks Applied . | . . . . . . . . . . . . . . . . . Relay Couplers Released . | . . . . . . . . . . . . . . . . . Robots Rewired . | . . . . . . . . . . . . . . . . . Allies Hacked . | . . . . . . . . . . . . . . . . . Hacks Repelled . | . . . . . . . . . . . . . . . . . Allies | -11 -10 -10 -9 -9 -9 -8 -8 -8 -7 -7 -7 -7 -6 -6 -6 -6 -------- Run | Scr Mat Min Mat Min Exi Min Mat Sto Fac Low Low Dat Pro Fac Was Fac Total Allies 12 | . . . . . . . . 10 . . . . 1 . 1 . Largest Group 10 | . . . . . . . . 10 8 7 1 . 1 . 1 . Highest-Rated Group 173 | . . . . . . . . 173 139 123 14 . 94 . 31 . Highest-Rated Ally 94 | . . . . . . . . 29 29 29 14 . 94 . 31 . Total Orders . | . . . . . . . . . . . . . . . . . Ally Attacks 112 | . . . . . . . . 39 29 29 . . 5 . 10 . Total Damage 1518 | . . . . . . . . 498 366 233 . . 230 . 191 . Kills 16 | . . . . . . . . 7 4 5 . . . . . . Allies Corrupted . | . . . . . . . . . . . . . . . . . Allies Melted . | . . . . . . . . . . . . . . . . . Intel | -11 -10 -10 -9 -9 -9 -8 -8 -8 -7 -7 -7 -7 -6 -6 -6 -6 ------- Run | Scr Mat Min Mat Min Exi Min Mat Sto Fac Low Low Dat Pro Fac Was Fac Robot Analysis Total 1 | . . . 1 . . . . . . . . . . . . . Derelict Logs Recovered 8 | . . 1 . 2 . . . . . 3 2 . . . . . Drone Launches . | . . . . . . . . . . . . . . . . . Drone Recoveries . | . . . . . . . . . . . . . . . . . Exploration | -11 -10 -10 -9 -9 -9 -8 -8 -8 -7 -7 -7 -7 -6 -6 -6 -6 ------------- Run | Scr Mat Min Mat Min Exi Min Mat Sto Fac Low Low Dat Pro Fac Was Fac Turns Passed 11611 | 66 944 1002 1457 529 642 942 1082 1197 306 814 1060 196 1004 86 118 166 Spaces Moved 5055 | 39 487 461 596 268 265 455 457 331 133 374 463 100 364 41 110 111 Core 120 | 4 . . . . . . . . . . . . . . 93 23 Treads 4935 | 35 487 461 596 268 265 455 457 331 133 374 463 100 364 41 17 88 Legs . | . . . . . . . . . . . . . . . . . Wheels . | . . . . . . . . . . . . . . . . . Hover . | . . . . . . . . . . . . . . . . . Flight . | . . . . . . . . . . . . . . . . . Fastest Speed 50 | 50 160 160 170 190 170 170 190 210 190 190 210 190 210 210 50 50 Average Speed 188 | 148 169 179 183 190 187 189 200 210 196 195 210 191 210 210 74 145 Slowest Speed 250 | 160 180 180 190 190 190 190 210 250 210 210 210 210 210 210 210 170 Overloaded Moves . | . . . . . . . . . . . . . . . . . Propulsion Burnouts . | . . . . . . . . . . . . . . . . . Robots Hopped . | . . . . . . . . . . . . . . . . . Cave-ins Triggered . | . . . . . . . . . . . . . . . . . Exploration Rate (%) 48 | 4 57 87 50 60 61 82 38 56 5 41 64 72 55 2 79 4 Regions Visited 16 Branch Regions 9 Pre-discovered Areas 3 | . . . . 1 . . . . . 1 . 1 . . . . Known Exits Taken 6 | . . 1 1 . . . 1 1 1 . . . 1 . . . Unknown Exits Taken 8 | 1 1 . . 1 1 1 . . . 1 1 1 . . . . Scrap Searched 9 | . . 1 . 3 . 1 . . . 1 3 . . . . . Spaces Dug 42 | . 1 . 10 . . 18 . 13 . . . . . . . . Terrain Destroyed 480 | . 38 5 48 45 18 111 99 42 24 . 10 . . . 40 . Melee . | . . . . . . . . . . . . . . . . . Projectile 2 | . . . . . . 1 1 . . . . . . . . . AOE 478 | . 38 5 48 45 18 110 98 42 24 . 10 . . . 40 . Terrain Rammed . | . . . . . . . . . . . . . . . . . Walls Destroyed . | . . . . . . . . . . . . . . . . . Machines Disabled . | . . . . . . . . . . . . . . . . . Actions | -11 -10 -10 -9 -9 -9 -8 -8 -8 -7 -7 -7 -7 -6 -6 -6 -6 --------- Run | Scr Mat Min Mat Min Exi Min Mat Sto Fac Low Low Dat Pro Fac Was Fac Total 6520 | 44 553 559 788 282 366 514 546 767 174 439 511 105 588 43 126 115 Wait 840 | . 10 48 33 . 74 31 5 355 23 40 14 . 207 . . . Move 5040 | 38 486 460 595 267 264 454 456 330 132 373 462 99 363 41 109 111 Hop . | . . . . . . . . . . . . . . . . . Pick Up 73 | . 11 4 26 3 2 1 11 8 1 3 1 . . . . 2 Fast Attach 39 | 6 1 1 6 1 . 3 5 9 . . 3 3 . . 1 . Attach 30 | . 2 1 6 . 3 2 4 . 3 3 . . 2 2 . 2 Detach 8 | . . . 1 . 1 1 1 2 . . 2 . . . . . Swap 57 | . 3 4 14 3 1 2 4 11 3 7 2 . 2 . 1 . Drop 58 | . . . 19 3 5 . 4 14 6 3 1 3 . . . . Fire 361 | . 38 36 88 5 16 20 55 38 6 9 26 . 9 . 15 . Melee . | . . . . . . . . . . . . . . . . . Ram . | . . . . . . . . . . . . . . . . . Kick . | . . . . . . . . . . . . . . . . . Crush 14 | . 2 5 . . . . 1 . . 1 . . 5 . . . Escape Stasis . | . . . . . . . . . . . . . . . . . Rewire . | . . . . . . . . . . . . . . . . . Trap . | . . . . . . . . . . . . . . . . . Miscellaneous . | . . . . . . . . . . . . . . . . . Route ------- -11/Scrapyard -10/Materials (discovered 3 exits: *Mat x2 / *Min) -10/Mines (discovered 2 exits: *Mat x2) -9/Materials (discovered 3 exits: *Mat x2 / *Min) -9/Mines (discovered 3 exits: *Mat x2 / *Exi) -9/Exiles -8/Mines -8/Materials (discovered 3 exits: Fac x2 / *Sto) -8/Storage -7/Factory (discovered 2 exits: *Low x2) -7/Lower Caves -7/Lower Caves -7/Data Miner -6/Proximity Caves -6/Factory -6/Waste -6/Factory History --------- Turn | Location | Event 2 | -11/Scrapyard | Met Revision 17 5 | -11/Scrapyard | Discovered new exit (range 16) 67 | -11/Scrapyard | Entered Materials 311 | -10/Materials | Build established: Mutant 435 | -10/Materials | Discovered new exit (range 15) 532 | -10/Materials | Discovered new exit (range 16) 571 | -10/Materials | Discovered new exit (range 12) 1011 | -10/Materials | Entered Mines 1056 | -10/Mines | Joined a pair of Derelicts in attacking an 0b10 outpost 1160 | -10/Mines | Core integrity fell below 50% 1206 | -10/Mines | Discovered new exit (range 6) 1369 | -10/Mines | YI-UF0 nonchalantly dropped a Grenade Launcher on the ground 1475 | -10/Mines | Destroyed YI-UF0 1573 | -10/Mines | Identified exit to Materials 1584 | -10/Mines | A weapon hastily lodged in a ceiling crevice suddenly fell to the ground 1702 | -10/Mines | Found a damaged Exp. Sensor Array with a note attached 1706 | -10/Mines | Found Prototype Device 2013 | -10/Mines | Entered Materials 2013 | -9/Materials | Evolved 2 slots: Utility x1, Weapon x1 2145 | -9/Materials | Lost 3 parts (3w) 2439 | -9/Materials | Build established: Scavenger-Gunner 2465 | -9/Materials | Identified Exp. Sensor Array 2491 | -9/Materials | Discovered new exit (range 8) 3268 | -9/Materials | Discovered new exit (range 10) 3357 | -9/Materials | Identified exit to Mines 3470 | -9/Materials | Entered Mines 3486 | -9/Mines | Discovered new exit (range 5) 3566 | -9/Mines | Learned 8 Materials zone layouts 3569 | -9/Mines | Learned location of Storage (-8) 3940 | -9/Mines | Learned Materials security intel 3969 | -9/Mines | Discovered new exit (range 9) 3990 | -9/Mines | Deemed a non-threat by the Exiles lab entrance 3990 | -9/Mines | Discovered new exit (range 5) 3999 | -9/Mines | Entered Exiles 4047 | -9/Exiles | Met 8R-AWN 4079 | -9/Exiles | Met EX-HEX 4132 | -9/Exiles | Met EX-BIN 4214 | -9/Exiles | Aligned with FarCom system 4216 | -9/Exiles | Given EX-Vault access code 4262 | -9/Exiles | Opened EX-Vault 4276 | -9/Exiles | Found YOLO Cannon 4281 | -9/Exiles | Found Latent Energy Streamer 4318 | -9/Exiles | Warned to stay clear of 0b10 Research branches 4342 | -9/Exiles | Exiles lab attacked by MAIN.C 4547 | -9/Exiles | Destroyed 11 combat bots 4616 | -9/Exiles | Lost 3 parts (1p1u1w) 4625 | -9/Exiles | Discovered new exit (range 10) 4627 | -9/Exiles | Core integrity fell below 50% 4641 | -9/Exiles | Stole two prototypes: Latent Energy Streamer, YOLO Cannon 4641 | -9/Exiles | Entered Mines 4678 | -8/Mines | Lost 3 parts (1p2n) 4720 | -8/Mines | Build established: Mutant 5558 | -8/Mines | Discovered new exit (range 6) 5583 | -8/Mines | Entered Materials 5583 | -8/Materials | Evolved 2 slots: Utility x2 5584 | -8/Materials | Identified exit to Storage 5584 | -8/Materials | Identified exit to Factory 5875 | -8/Materials | Build established: Hauler-Mutant 6081 | -8/Materials | Destroyed 8 combat bots 6532 | -8/Materials | Build established: Hauler-Skirmisher 6665 | -8/Materials | Entered Storage 7746 | -8/Storage | Assisted by bots powering up and referring to "LRC-V3" 7822 | -8/Storage | Discovered exit to Factory (range 16) 7862 | -8/Storage | Entered Factory 7862 | -7/Factory | Accompanied by 8 allies 7862 | -7/Factory | Evolved 2 slots: Utility x2 7864 | -7/Factory | FarCom data flow suspended 7955 | -7/Factory | Identified exit to Lower Caves 8168 | -7/Factory | Entered Lower Caves 8168 | -7/Lower Caves | Accompanied by 7 allies 8169 | -7/Lower Caves | Encountered a Warlord checkpoint 8178 | -7/Lower Caves | Learned Factory trap positions 8239 | -7/Lower Caves | Learned location of 1 exit from Proximity Caves 8563 | -7/Lower Caves | Build established: Hauler-Mutant 8591 | -7/Lower Caves | Attracted the attention of an 0b10 checkpoint 8657 | -7/Lower Caves | Lost 4 parts (1u3w) 8910 | -7/Lower Caves | Discovered new exit (range 8) 8940 | -7/Lower Caves | Learned location of Zion (-6) 8982 | -7/Lower Caves | Entered another Lower Caves area 8982 | -7/Lower Caves | Accompanied by 1 ally 9111 | -7/Lower Caves | Learned Factory machine intel 9708 | -7/Lower Caves | Build established: Scavenger-Tank 9770 | -7/Lower Caves | Learned Factory security intel 9928 | -7/Lower Caves | Spotted QD-BPS(f) 9929 | -7/Lower Caves | Encountered a Master Thief 9932 | -7/Lower Caves | Spotted CZ-KCD(f) 9933 | -7/Lower Caves | Encountered a Master Thief 9933 | -7/Lower Caves | Spotted 4A-VX1(f) 9934 | -7/Lower Caves | Encountered a Master Thief 9934 | -7/Lower Caves | Latent Energy Streamer stolen by Master Thief 9947 | -7/Lower Caves | Hcp. Matter Pod stolen by Master Thief 9980 | -7/Lower Caves | Destroyed QD-BPS(f) 10033 | -7/Lower Caves | Discovered new exit (range 5) 10042 | -7/Lower Caves | Entered Data Miner 10044 | -7/Data Miner | Discovered new exit (range 6) 10080 | -7/Data Miner | Met Data Miner 10118 | -7/Data Miner | Learned location of Section 7 (-2) 10118 | -7/Data Miner | Acquired the access code to Warlord's prototype stash 10150 | -7/Data Miner | Received God Mode back door access code from Data Miner 10238 | -7/Data Miner | Entered Proximity Caves 10239 | -6/Proximity Caves | Identified exit to Factory 10301 | -6/Proximity Caves | Escorted by Enhanced Grunt 10620 | -6/Proximity Caves | Build established: Hauler-Mutant 10836 | -6/Proximity Caves | System corruption reached 10% 11242 | -6/Proximity Caves | Entered Factory 11242 | -6/Factory | Evolved 2 slots: Utility x2 11243 | -6/Factory | Loaded intel: 73 trap records 11245 | -6/Factory | Loaded intel: 267 machine locations 11326 | -6/Factory | Hacking Suite fried by hacking feedback 11328 | -6/Factory | Sucked down chute 11328 | -6/Factory | Entered Waste 11329 | -6/Waste | Met a frightened Derelict 11359 | -6/Waste | Spotted C-40 Crusher 11372 | -6/Waste | Spotted C-40 Crusher 11388 | -6/Waste | Destroyed C-40 Crusher 11399 | -6/Waste | Crushed by Compactor (1 part destroyed, 1 dropped) 11400 | -6/Waste | Released all parts (12) 11402 | -6/Waste | Spotted C-40 Crusher 11403 | -6/Waste | Spotted C-40 Crusher 11409 | -6/Waste | Destroyed C-40 Crusher 11425 | -6/Waste | Spotted C-40 Crusher 11435 | -6/Waste | Spotted C-40 Crusher 11438 | -6/Waste | Discovered new exit (range 12) 11446 | -6/Waste | Entered Factory 11612 | -6/Factory | Self-destructed Last Messages --------------- 11402_ Imp. Light Armor Plating crushed. 11402_ Arm. Treads crushed. 11404_ Adv. Sensor Array crushed. 11406_ The unstable cave ceiling collapses. 11407_ Broken Impulse Thruster Array crushed. 11409_ The unstable cave ceiling collapses. 11409_ C-40 Crusher crushed by falling debris. 11409_ C-40 Crusher destroyed. 11438_ EXIT=FOUND LOCATION=UNKNOWN GOAL=ESCAPE 11469_ Acquired Hvy. Ion Cannon. 11519_ Acquired Unknown Energy Cannon. 11575_ K-01 Serf cleans the Nuclear Reactor. 11593_ Connecting with Recycling Unit... 11593_ Current location identified: Factory 11595_ K-01 Serf collects debris. 11611_ Triggered Alarm Trap. 11611_ An alarm sounds. 11611_ ALERT: Alarm triggered, dispatching investigation squad. Map ----- +----------------------------------------------------+ | ?????????????????????????????????????????????????? | | ?????????????????????????????????????????????????? | | ?????????????????????????????????????????????????? | | ?????????????????????????????????????????????????? | | ?????????????????????????????????????????????????? | | ?????????????????????????????????????????????????? | | ?????????????????????????????????????????????????? | | ?????????????????????????????????????????????????? | | ?????????????????????????????????????????????????? | | ?????????????????????????????????????????????????? | | ?????????????????????????????????????????????????? | | ????????????????????????#########????????????????? | | ???????????????????????? #????????????????? | | ????????????????????????" ! #????????????????? | | ???????????????????# """" #????????????????? | | ??????????????????## """" !** #????????????????? | | ??????????????????? """" !* #????????????????? | | ???????????????????# !* #????????????????? | | ???????????????????# #????????????????? | | ???????????????????# #????????????????? | | ???????????????????# #????????????????? | | ???????????????????? "Y" #????????????????? | | ??????????????????????"" ??????????????????? | | ???????????????????????? ????????????????????? | | ???????????????????????###+###???????????????????? | | ???????????????????????# @ #?###???########????? | | ???????????????????##### #?# ?? #????? | | ???????????????????+ #?# ?? #????? | | ???????????????????# #?# ? #????? | | ???????????????????+ #?# """ """ ###### | | ???????????????????# #?# """ """ # | | ??????????????###### #?# """ """ # | | ??????????? #?# # | | ??????????? #?# """ """ # | | ????????????""" """ """ """ #?# """ """ + | | ??????????????" """ """ """ #?# """ """ # | | ????????????????""" """ """ #?# # | | ???????????? #?# # | | ????????????????""" """ """ ############+### | | ??????????????????? """ """ ! | | ????????????????????""" """ | | ??????????????????? """ | | ????????????????????""" """ """ | | ????????????????????""" """ """ | | ????????????????????""" """ ############## | | ???????????????? #????????????? | | ????????????????????""" " " #????????????? | | ????????????????????""" "Y" #????????????? | | ????????????????????""" " " """ #????????????? | | ???????????????????? "Y" #????????????? | +----------------------------------------------------+ Best States ------------- Heat Dissipation 68 Energy Generation 16 Energy Capacity 290 Matter Stores 300 Matter Capacity 300 Sight Range 16 Robot Scan Range 30 Terrain Scan Density 10 Armor Coverage 825 Utility Shielding 66 Evasion (%) 50 Recoil Reduction 2 Offensive Hacking 30 Item Schematics ----------------- Adv. Treads | -8/Storage | Hacked Combat Drone Bay | -7/Data Miner | Free Lgt. Regenerative Plating | -7/Data Miner | Free Exp. Cesium-ion Thruster | -7/Data Miner | Free Triangulator | -7/Data Miner | Free Exp. Sensor Array | -7/Data Miner | Free Exp. Terrain Scan Processor | -7/Data Miner | Free Exp. ECM Suite | -7/Data Miner | Free Robot Schematics ------------------ S-27 Virus | -7/Data Miner | Free G-50 Soldier | -7/Data Miner | Free G-67 Veteran | -7/Data Miner | Free H-66 Slayer | -7/Data Miner | Free I-36 Angel | -7/Data Miner | Free I-47 Archangel | -7/Data Miner | Free Fabricated ------------ Nothing Alien Tech Used ----------------- None Achievements -------------- None Challenges ------------ None Game ------ Seed LatentWaveTorch Manual? 0 Play Time 01:14:29 Cumulative 1073.8 hours Start 2020.10.31 @ 17:46:17 End 2020.10.31 @ 20:24:41 Sessions 1 Manual Loads 0 Difficulty Rogue Special Mode None Game No. 665 Rogue 665 Adventurer 0 Explorer 0 Win Type - Total 18 Types 10/1/4/3/0/0/0/0/0 Lore% 90 Gallery% 93 Achievement% 81 Wizard Run 0 Options --------- ASCII 0 Keyboard 0 Movement Mouse Keybinds 0 Fullscreen 2 Font 24/Smallcaps Map View 76x50 Tactical HUD 1 Map Filters NONE Filters NONE Steam 1 RUN: b6c153be-6d27-472e-ab97-52a861bcf67f